bitfinex-derivatives/quotes_ETHF0:USTF0_20260203
["timestamp","ask_amount","ask_price","bid_price","bid_amount"]
[1770136238531,4.89214135,2247.8,2246.1,0.2387399]
[1770136238735,4.89214135,2248.7,2246.2,2.52428866]
[1770136239036,4.77066635,2248.0,2246.4,2.52428866]
[1770136239340,0.05812361,2248.4,2246.4,2.52428866]
[1770136239538,5.09592633,2248.7,2246.5,1.87241754]
[1770136239539,4.77066635,2247.9,2246.5,1.87241754]
[1770136239740,4.82878996,2247.9,2246.5,1.87241754]
[1770136239941,0.05812361,2247.9,2246.5,1.87241754]
[1770136240142,4.77066635,2247.8,2246.4,2.52428866]
[1770136240334,4.77066635,2247.8,2246.5,2.45310151]
[1770136240635,0.00525059,2248.7,2247.2,2.45310151]
[1770136240842,0.00525059,2248.7,2247.7,2.45310151]
[1770136241041,0.00525059,2248.7,2247.9,2.45310151]
[1770136241237,0.00525059,2248.7,2248.1,2.69184141]
[1770136241439,2.21146755,2249.8,2244.1,0.22301]
[1770136241738,4.99052131,2248.6,2245.7,2.55335046]
[1770136241944,0.14284258,2248.7,2245.9,2.55335046]
[1770136242142,0.14284258,2248.6,2246.1,2.48192917]
[1770136242437,5.13834118,2248.6,2246.1,2.48676929]
[1770136242740,4.9954986,2248.6,2246.3,2.48192917]
[1770136243241,4.9954986,2248.6,2246.1,0.22765012]
[1770136243242,5.13834118,2248.6,2246.5,2.48192917]
[1770136243441,4.9954986,2248.6,2246.5,2.48192917]
[1770136243635,4.9954986,2248.6,2246.6,1.86716695]
[1770136243842,4.9954986,2248.6,2246.7,2.48192917]
[1770136244541,4.9954986,2248.6,2246.9,2.45310151]
[1770136245839,0.00497729,2248.6,2247.1,2.45310151]
[1770136246436,0.2224,2250.3,2247.6,2.45310151]
[1770136246640,0.31110479,2250.5,2247.8,2.67575151]
[1770136246837,0.31110479,2250.5,2247.7,8.92216695]
[1770136246838,0.31110479,2249.3,2247.7,4.87215971]
[1770136247142,0.31110479,2250.0,2247.9,2.45310151]
[1770136247337,0.00543195,2250.0,2247.9,2.45824454]
[1770136247542,0.31110479,2249.9,2248.1,2.45310151]
[1770136247840,5.09470769,2249.8,2248.3,2.45310151]
[1770136248039,5.09470769,2249.8,2248.4,2.45310151]
[1770136248238,5.40081153,2249.8,2248.4,2.45310151]
[1770136248637,5.40081153,2249.8,2248.5,1.86716695]
[1770136248839,5.40081153,2249.8,2248.5,4.32026846]
[1770136249339,0.22246,2249.7,2248.5,1.86716695]
[1770136249539,0.22246,2249.7,2248.5,4.32026846]
[1770136249842,4.85352875,2249.6,2248.6,2.45310151]
[1770136250040,0.00543195,2250.0,2248.5,1.86716695]
[1770136250041,0.00543195,2250.0,2248.7,9.50810151]
[1770136250240,4.89128713,2249.9,2248.8,2.45310151]
[1770136250543,0.00543195,2250.0,2249.0,2.40294958]
[1770136250841,4.89128713,2249.8,2249.1,1.86716695]
[1770136251036,4.89128713,2249.9,2248.5,2.40294958]
[1770136251237,0.00543195,2250.0,2248.6,9.45794958]
[1770136251434,4.62337599,2249.9,2248.7,2.40294958]
[1770136251640,0.31150283,2250.0,2248.2,2.40294958]
[1770136251834,0.22245,2249.8,2248.4,2.40294958]
[1770136252239,1.84635768,2249.7,2248.6,2.41120411]
[1770136252441,1.85180223,2249.7,2248.7,4.27837106]
[1770136252638,1.85180223,2249.7,2248.4,4.447]
[1770136252835,2.369256,2249.7,2248.4,4.447]
[1770136253343,2.369256,2249.7,2248.4,6.85821406]
[1770136253643,0.22248,2249.5,2248.4,1.04494338]
[1770136253937,5.00079303,2249.4,2248.4,1.04494338]
[1770136254342,5.00079303,2249.4,2248.4,8.05051923]
[1770136254537,4.80505588,2249.6,2248.4,8.05051923]
[1770136254737,0.00544455,2249.7,2248.4,8.05051923]
[1770136254939,4.80505588,2249.6,2248.4,8.05051923]
[1770136255139,4.80505588,2249.6,2248.5,2.55857585]
[1770136255444,0.00544455,2249.7,2248.6,7.00657585]
[1770136255643,4.63038365,2249.6,2248.6,8.05151923]
[1770136256141,4.63038365,2249.6,2248.7,2.55857585]
[1770136257045,4.63038365,2249.6,2248.8,3.60351923]
[1770136257344,4.63038365,2249.6,2248.9,2.55857585]
[1770136257547,4.63038365,2249.6,2248.9,7.00497586]
[1770136257743,4.63038365,2249.6,2249.0,1.04494338]
[1770136258045,0.00544455,2249.7,2249.0,1.04494338]
[1770136258241,5.01906466,2249.6,2249.0,1.04494338]
[1770136258436,5.01906466,2249.6,2248.6,7.057]
[1770136258648,5.01906466,2249.6,2248.7,1.04494338]
[1770136259241,5.01906466,2249.6,2248.8,2.55857585]
[1770136259446,0.00544455,2249.7,2249.1,4.44640001]
[1770136259649,0.00544455,2249.7,2249.0,9.61557585]
[1770136259946,0.00544455,2249.7,2249.0,14.06197586]
[1770136260243,6.91412425,2251.1,2249.0,14.06197586]
[1770136260244,0.22235,2250.8,2249.5,2.55857585]
[1770136260443,0.22196456,2251.3,2249.7,2.55857585]
[1770136260646,5.07571908,2250.7,2249.9,2.55857585]
[1770136260846,5.07571908,2251.2,2250.1,2.39973772]
[1770136261047,2.48137708,2252.1,2250.6,2.39973772]
[1770136261250,2.486,2252.1,2250.8,2.39973772]
[1770136261451,7.62533857,2251.6,2250.7,1.04494338]
[1770136261642,2.48137708,2251.5,2250.7,0.61142379]
[1770136261846,2.48137708,2251.5,2250.3,2.39973772]
[1770136262141,0.22235,2250.8,2249.7,2.39973772]
[1770136262341,0.22235,2250.8,2249.1,2.39973772]
[1770136262542,2.70375708,2250.6,2249.2,2.39973772]
[1770136262741,2.48137708,2250.4,2249.2,2.40486553]
[1770136262940,2.70942854,2250.4,2249.2,2.40486553]
[1770136263145,4.79172451,2250.3,2249.3,2.39973772]
[1770136263341,4.50996758,2250.2,2249.3,2.39973772]
[1770136263546,4.79172451,2250.3,2249.3,2.39973772]
[1770136263847,4.79172451,2250.1,2249.4,2.39973772]
[1770136264051,4.79172451,2250.3,2249.4,2.39973772]
[1770136264247,2.48703854,2250.4,2249.4,3.26005471]
[1770136264452,2.68855425,2250.0,2248.6,2.39973772]
[1770136264651,6.9778004,2249.9,2248.6,2.39973772]
[1770136264850,4.51167615,2249.8,2249.0,3.21191603]
[1770136265045,4.51167615,2249.7,2248.5,3.21191603]
[1770136265352,4.51167615,2249.6,2248.6,2.39973772]
[1770136265645,2.68856425,2249.9,2248.9,2.39973772]
[1770136265851,4.51217699,2249.8,2249.0,5.61165375]
[1770136266042,4.51217699,2249.7,2248.7,9.45473772]
[1770136266243,4.634811,2249.8,2248.9,2.39973772]
[1770136266446,4.51413851,2249.7,2248.9,5.61165375]
[1770136266647,0.22244,2249.9,2249.0,3.21191603]
[1770136266847,4.51511808,2249.8,2249.0,5.61165375]
[1770136267147,4.85801498,2249.8,2249.0,2.39973772]
[1770136267342,4.51692937,2249.7,2248.6,2.39973772]
[1770136267542,7.61926459,2249.9,2248.7,7.055]
[1770136267751,40.54714579,2250.1,2248.7,10.26691603]
[1770136267752,4.50258983,2249.8,2248.7,10.26691603]
[1770136267951,5.15314034,2249.8,2248.9,2.39973772]
[1770136268152,5.15314034,2249.8,2249.1,5.61165375]
[1770136268344,2.47178571,2250.4,2249.2,5.61165375]
[1770136268652,2.47178571,2250.4,2249.5,2.39973772]
[1770136268653,0.00566146,2250.4,2249.5,2.39973772]
[1770136268953,2.48137708,2249.8,2248.6,10.322]
[1770136269149,4.46860854,2249.8,2248.7,2.39973772]
[1770136269353,2.46612425,2250.4,2249.3,2.39973772]
[1770136269650,2.48137708,2250.5,2249.4,7.27749]
[1770136269849,4.94750133,2250.9,2249.7,3.21191603]
[1770136270150,2.48137708,2250.6,2249.1,0.22251]
[1770136270349,2.48137708,2250.4,2249.2,7.055]
[1770136270546,2.48137708,2250.4,2249.2,10.26691603]
[1770136270747,7.11204611,2250.3,2249.3,3.21191603]
[1770136270945,2.63942635,2250.3,2249.2,10.26691603]
[1770136271146,2.48137708,2250.3,2249.4,3.21191603]
[1770136271348,1.89647873,2250.2,2249.4,3.21191603]
[1770136271553,1.89647873,2250.2,2249.2,7.055]
[1770136271554,1.89647873,2250.2,2249.7,3.21191603]
[1770136271853,0.00549904,2250.4,2249.2,9.45473772]
[1770136271854,0.00549904,2250.4,2249.6,3.21191603]
[1770136272049,2.48137708,2249.5,2247.4,0.646]
[1770136272351,4.63238095,2249.4,2248.5,2.4039028]
[1770136272546,4.63238095,2249.4,2248.5,2.6264828]
[1770136272745,2.46612425,2250.1,2248.7,2.39973772]
[1770136272944,4.47383032,2250.0,2248.9,2.39973772]
[1770136273155,2.48137708,2249.8,2249.0,2.608]
[1770136273350,2.48137708,2249.6,2248.5,2.4039028]
[1770136273654,11.78799853,2249.5,2248.5,0.00416508]
[1770136273854,4.47383032,2249.4,2248.5,0.00416508]
[1770136274154,9.15992843,2249.3,2248.5,0.00416508]
[1770136274354,4.47383032,2249.2,2248.5,0.00416508]
[1770136274555,4.68609811,2249.3,2248.5,0.00416508]
[1770136274754,4.45918046,2249.2,2248.5,2.4039028]
[1770136274952,2.46612425,2249.6,2248.5,2.4039028]
[1770136275152,4.46007731,2249.5,2248.5,2.4039028]
[1770136275450,2.46612425,2249.7,2248.5,2.4039028]
[1770136275655,4.4605573,2249.6,2248.5,2.4039028]
[1770136275853,0.00549904,2250.4,2249.1,2.39973772]
[1770136276054,0.00549904,2250.4,2249.3,2.39973772]
[1770136276360,0.00549904,2250.4,2249.5,2.39973772]
[1770136276652,0.00549904,2250.4,2249.7,2.39973772]
[1770136276857,2.48137708,2251.0,2249.7,2.39973772]
[1770136277157,4.97755484,2250.9,2249.7,2.39973772]
[1770136277760,4.98182626,2250.9,2249.7,2.39973772]
[1770136278056,2.46612425,2250.8,2249.8,7.055]
[1770136278352,4.74602161,2250.7,2249.8,7.055]
[1770136278553,7.21214586,2250.7,2249.8,7.055]
[1770136278755,2.46612425,2250.4,2249.7,2.39973772]
[1770136278957,2.48137708,2250.4,2249.7,2.608]
[1770136279158,2.46612425,2249.9,2248.9,2.39973772]
[1770136279354,2.48137708,2250.2,2249.0,7.055]
[1770136279559,2.46612425,2250.1,2249.1,7.055]
[1770136279758,4.8036137,2250.1,2249.2,2.62224772]
[1770136280058,2.46612425,2250.0,2249.2,2.608]
[1770136280259,4.8036137,2250.5,2249.3,2.39973772]
[1770136280456,2.46612425,2250.4,2249.3,2.39973772]
[1770136280760,2.05247686,2250.2,2249.3,2.39973772]
[1770136281060,2.46612425,2250.3,2249.3,2.39973772]
[1770136281253,4.6879206,2250.1,2249.4,2.608]
[1770136281559,2.01011366,2250.2,2249.5,2.608]
[1770136281858,4.6879206,2250.3,2249.6,2.3502337]
[1770136282160,0.22661142,2250.9,2249.8,2.3502337]
[1770136282161,0.00427142,2250.9,2249.8,2.3502337]
[1770136282361,0.00427142,2250.9,2249.9,4.447]
[1770136282659,4.99958303,2250.8,2249.9,6.7972337]
[1770136283054,2.37381097,2250.7,2249.5,2.3502337]
[1770136283260,5.22193303,2250.8,2249.7,2.3502337]
[1770136283461,7.54321326,2250.6,2249.7,2.3502337]
[1770136283659,7.54321326,2250.6,2249.6,2.608]
[1770136283660,4.83993522,2250.6,2249.6,2.608]
[1770136283859,2.46612425,2250.4,2249.6,2.608]
[1770136284251,4.71184012,2250.3,2249.7,2.3502337]
[1770136284460,37.84762013,2250.9,2249.7,2.3502337]
[1770136284461,0.00427142,2250.9,2249.7,2.5726937]
[1770136284656,4.71184012,2250.7,2249.7,2.5726937]
[1770136284852,0.00427142,2250.9,2249.7,2.5726937]
[1770136285452,0.00427142,2250.9,2250.2,0.22241]
[1770136285656,2.37381097,2251.4,2250.3,4.9582337]
[1770136285856,2.37381097,2251.6,2250.5,2.3502337]
[1770136286052,2.37381097,2251.6,2250.4,4.446]
[1770136286053,5.15461289,2251.3,2250.4,4.446]
[1770136286257,7.62073714,2251.3,2250.4,4.446]
[1770136286554,2.46612425,2250.8,2250.2,0.00354073]
[1770136286759,2.37381097,2251.1,2250.2,0.00354073]
[1770136286952,2.46612425,2251.0,2250.2,0.00354073]
[1770136287152,6.81053094,2251.0,2250.2,0.00354073]
[1770136287354,6.71821766,2251.0,2250.2,0.00354073]
[1770136287558,2.46612425,2250.8,2250.2,0.00354073]
[1770136287855,4.83993522,2250.8,2250.2,0.00354073]
[1770136288061,11.32448491,2250.7,2250.1,2.6037286]
[1770136288258,4.20592173,2250.6,2250.1,2.6037286]
[1770136288461,2.46612425,2250.5,2250.1,2.6037286]
[1770136288656,2.46612425,2250.8,2250.1,2.6037286]
[1770136288862,7.43272019,2250.9,2250.1,2.6037286]
[1770136289062,4.20332372,2251.0,2250.1,4.95753052]
[1770136289259,4.20674534,2250.9,2250.1,4.95753052]
[1770136289456,2.46612425,2251.1,2250.2,2.3502337]
[1770136289757,7.20852204,2251.0,2250.1,2.60729682]
[1770136290060,4.83993522,2250.8,2250.1,0.00356822]
[1770136290260,6.6752295,2250.7,2250.1,0.00356822]
[1770136290454,2.46612425,2250.4,2249.9,2.608]
[1770136290658,2.46612425,2250.3,2249.9,2.608]
[1770136290962,2.37381097,2250.8,2249.9,2.608]
[1770136291157,2.46612425,2250.5,2249.9,2.608]
[1770136291461,2.46612425,2250.5,2249.9,2.61128615]
[1770136291662,2.46612425,2250.3,2249.9,2.61128615]
[1770136291859,40.21715968,2251.1,2249.9,4.9572337]
[1770136292063,6.58822142,2251.0,2249.9,4.9572337]
[1770136292255,37.84334871,2251.1,2248.5,6.63791016]
[1770136292256,2.37381097,2250.6,2249.5,2.3502337]
[1770136292456,2.37381097,2250.6,2247.9,2.22191016]
[1770136292457,4.21341219,2250.5,2249.6,9.4032337]
[1770136292655,2.46612425,2250.4,2249.6,9.4032337]
[1770136292855,0.79035177,2250.5,2249.6,9.40833382]
[1770136293058,2.46612425,2250.6,2249.6,9.40833382]
[1770136293256,4.85904601,2250.4,2249.6,9.40833382]
[1770136293656,2.46612425,2250.7,2249.6,9.40833382]
[1770136293657,4.85904601,2250.7,2249.6,9.40833382]
[1770136293863,4.21588779,2250.6,2249.7,2.3502337]
[1770136294060,4.83993522,2250.8,2249.7,2.3502337]
[1770136294264,9.07359527,2250.7,2249.9,0.22243]
[1770136294466,2.37381097,2251.2,2250.0,2.5726637]
[1770136294665,5.06422108,2250.9,2250.0,2.5726637]
[1770136294965,4.89548854,2251.0,2250.0,2.5726637]
[1770136295165,2.37381097,2251.2,2250.0,2.5726637]
[1770136295367,4.18776816,2251.1,2250.0,2.5726637]
[1770136295566,2.37381097,2251.0,2250.0,2.5726637]
[1770136295765,0.22239,2250.4,2249.6,0.00510012]
[1770136296064,2.37381097,2251.9,2250.5,0.22238]
[1770136296363,2.37381097,2251.9,2249.6,0.00510012]
[1770136296364,2.37381097,2251.9,2250.6,7.053]
[1770136296568,2.37381097,2251.9,2250.7,4.446]
[1770136296762,2.55783751,2251.5,2250.8,7.053]
[1770136296968,2.55783751,2251.5,2250.9,6.80556421]
[1770136297165,0.22214,2252.9,2251.2,2.64890647]
[1770136297369,3.67388636,2252.6,2251.2,2.64890647]
[1770136297564,1.23107304,2252.4,2251.4,2.64890647]
[1770136297767,4.9049594,2252.4,2251.4,2.64890647]
[1770136298063,3.67388636,2252.3,2251.3,2.64890647]
[1770136298270,3.67796375,2252.3,2251.5,2.607]
[1770136298664,3.67388636,2251.8,2251.3,0.00429182]
[1770136298868,3.67388636,2251.7,2251.0,2.607]
[1770136299067,1.10447867,2251.7,2251.0,2.82932]
[1770136299268,2.37788836,2252.3,2251.2,2.87121647]
[1770136299467,2.37788836,2252.3,2251.3,2.64890647]
[1770136299671,2.65819502,2252.2,2251.2,2.87121647]
[1770136299870,2.65819502,2252.2,2251.3,2.64890647]
[1770136300072,2.37381097,2252.2,2251.3,2.64890647]
[1770136300472,2.37381097,2252.2,2251.2,6.979054]
[1770136300674,2.37381097,2252.2,2251.3,6.75114224]
[1770136300873,2.37381097,2252.2,2251.2,2.87681823]
[1770136301168,2.37381097,2252.2,2251.2,0.22791176]
[1770136303974,0.00407739,2252.3,2251.2,1.56104316]
[1770136304173,2.37381097,2253.4,2252.1,1.55136401]
[1770136304369,2.37381097,2253.7,2252.6,0.22217]
[1770136304974,2.37381097,2254.7,2253.2,0.22211]
[1770136305176,2.37381097,2254.7,2253.2,2.8334748]
[1770136305177,2.37874076,2254.7,2253.2,2.8334748]
[1770136305376,2.37874076,2254.7,2253.2,0.0053648]
[1770136305377,2.37381097,2254.2,2253.2,0.0053648]
[1770136305576,2.37381097,2253.9,2253.2,0.0053648]
[1770136305772,2.37381097,2253.8,2253.1,4.444]
[1770136306273,2.37381097,2253.5,2253.1,4.444]
[1770136306781,6.04769733,2253.4,2253.1,4.44793244]
[1770136306977,2.37381097,2253.7,2253.1,4.44793244]
[1770136307175,6.04769733,2253.6,2252.4,2.606]
[1770136307479,2.37381097,2254.3,2252.5,1.64226524]
[1770136307974,2.37381097,2253.9,2252.4,2.606]
[1770136308281,2.37381097,2253.9,2252.4,2.61012417]
[1770136308481,2.37381097,2253.7,2252.4,2.61012417]
[1770136308783,2.37381097,2253.7,2252.6,1.85305793]
[1770136309178,2.37381097,2253.7,2252.7,0.22216]
[1770136309780,2.37381097,2254.6,2252.7,1.85304793]
[1770136309983,2.37381097,2254.4,2252.7,1.85304793]
[1770136310288,2.37381097,2254.4,2253.2,0.22211]
[1770136310474,2.37381097,2254.4,2253.3,2.82709]
[1770136310675,2.37381097,2254.4,2253.3,4.46235994]
[1770136310974,2.35996667,2254.0,2253.0,2.605]
[1770136311176,3.67388636,2254.1,2253.0,2.605]
[1770136311177,6.03385303,2253.8,2253.0,2.605]
[1770136311384,2.35996667,2253.4,2252.8,4.442]
[1770136311884,2.35996667,2253.2,2252.8,4.442]
[1770136312382,2.35996667,2253.2,2252.7,2.605]
[1770136312383,3.67388636,2252.9,2252.0,2.38111959]
[1770136312582,2.35996667,2253.5,2252.0,2.38111959]
[1770136313080,2.35996667,2254.2,2252.0,2.38111959]
[1770136313281,2.35996667,2253.9,2252.4,2.5328709]
[1770136313779,2.41319305,2253.2,2252.1,2.5328709]
[1770136314481,2.41319305,2253.0,2252.0,0.0053395]
[1770136314677,2.41319305,2252.6,2251.7,4.442]
[1770136315078,3.67388636,2252.3,2251.7,4.442]
[1770136315381,3.67388636,2252.3,2251.3,2.5328709]
[1770136315382,2.41319305,2252.3,2251.3,2.5328709]
[1770136315583,3.67388636,2252.2,2251.3,2.5328709]
[1770136315789,3.67791748,2252.2,2251.3,2.53791689]
[1770136316990,0.00403112,2252.2,2251.3,2.76020689]
[1770136318093,6.08707941,2252.1,2251.3,0.00504599]
[1770136318291,3.67388636,2252.0,2251.3,0.00504599]
[1770136318593,3.67388636,2251.9,2251.3,0.00504599]
[1770136318782,2.41319305,2252.1,2251.3,0.00504599]
[1770136318990,0.00403112,2252.2,2251.3,2.53791689]
[1770136319294,3.67388636,2252.0,2251.3,0.00504599]
[1770136319791,3.67388636,2251.9,2251.3,0.00504599]
[1770136319988,3.67388636,2252.0,2251.3,0.00504599]
[1770136320491,3.67388636,2251.9,2251.3,0.00504599]
[1770136320687,3.67388636,2251.8,2250.9,2.5328709]
[1770136320992,0.00403112,2252.2,2250.9,2.5328709]
[1770136321491,6.68706383,2252.1,2250.9,2.5328709]
[1770136321686,6.68706383,2252.1,2250.9,2.53729098]
[1770136321687,2.41319305,2252.0,2250.9,2.53729098]
[1770136321885,4.27387078,2252.1,2250.2,2.5328709]
[1770136321886,2.41319305,2251.4,2250.2,2.5328709]
[1770136322087,2.41319305,2251.3,2250.2,2.5328709]
[1770136322297,4.4654613,2251.3,2250.2,2.5328709]
[1770136322495,6.08707941,2251.1,2249.9,5.1378709]
[1770136322688,3.67388636,2251.0,2249.9,5.1378709]
[1770136322889,1.86321339,2251.0,2250.0,2.5328709]
[1770136323096,2.41319305,2251.4,2250.1,2.5328709]
[1770136323487,6.08707941,2251.2,2250.1,2.5328709]
[1770136323794,0.31585282,2251.1,2250.1,2.5328709]
[1770136324090,2.41319305,2252.1,2250.6,2.5328709]
[1770136324294,2.22191016,2253.5,2250.6,2.5328709]
[1770136324295,2.41319305,2252.9,2251.6,2.5328709]
[1770136324492,2.41319305,2253.4,2251.8,2.5328709]
[1770136324692,2.41319305,2254.0,2252.4,2.5328709]
[1770136324892,2.41319305,2254.0,2252.0,2.64890647]
[1770136324893,2.41319305,2253.7,2252.0,2.64890647]
[1770136325188,6.08707941,2253.6,2252.1,2.5328709]
[1770136325388,0.00358121,2253.6,2252.4,2.5328709]
[1770136325585,4.443,2254.3,2252.5,2.5328709]
[1770136325786,3.67388636,2253.9,2252.5,2.5328709]
[1770136326192,3.67388636,2253.7,2252.5,2.5328709]
[1770136326393,3.67388636,2253.8,2252.6,2.5328709]
[1770136326593,0.0049756,2253.8,2252.6,2.5328709]
[1770136326793,0.0049756,2253.8,2252.7,5.18177737]
[1770136326992,0.0049756,2253.8,2252.9,5.18177737]
[1770136327186,0.0049756,2253.8,2252.9,2.5328709]
[1770136327995,0.0049756,2253.8,2252.7,2.64890647]
[1770136328186,3.67388636,2253.6,2252.6,9.62377737]
[1770136328388,0.0049756,2253.8,2252.6,9.62377737]
[1770136328597,0.0049756,2253.8,2252.7,6.7645666]
[1770136328788,0.0049756,2253.8,2252.9,2.87104647]
[1770136328996,1.52211242,2254.9,2253.5,2.5328709]
[1770136329497,3.67388636,2254.6,2253.5,2.5328709]
[1770136329695,3.67388636,2254.6,2253.4,2.605]
[1770136329696,1.52708802,2254.6,2253.4,2.605]
[1770136329896,3.67388636,2254.1,2253.1,2.5328709]
[1770136330093,3.67388636,2254.2,2253.1,2.5328709]
[1770136330296,3.67388636,2253.9,2252.8,2.5328709]
[1770136330594,3.67388636,2254.4,2252.9,2.64890647]
[1770136330803,3.89587636,2254.5,2253.0,2.5328709]
[1770136331095,31.092,2255.7,2253.0,2.5328709]
[1770136331096,2.41319305,2255.3,2253.0,2.5328709]
[1770136331395,0.22147,2259.8,2254.1,6.59287017]
[1770136331396,2.63506305,2255.7,2254.1,6.59287017]
[1770136331696,2.41319305,2255.5,2253.9,2.605]
[1770136331995,4.56e-06,2256.3,2255.5,2.5328709]
[1770136332197,2.41319305,2257.4,2255.8,2.5328709]
[1770136332392,2.41319305,2257.4,2255.9,2.5328709]
[1770136332599,4.441,2258.1,2255.6,2.605]
[1770136332600,2.41319305,2257.2,2255.6,2.605]
[1770136332795,2.41319305,2257.0,2255.5,0.00439639]
[1770136333297,2.41852949,2257.0,2255.5,0.00439639]
[1770136333691,2.41852949,2257.0,2255.5,2.53726729]
[1770136334090,2.41852949,2257.0,2255.5,0.00439639]
[1770136335096,2.41852949,2257.0,2255.5,2.53726729]
[1770136335399,6.85752949,2257.0,2255.5,0.00439639]
[1770136335598,2.63494305,2256.9,2255.5,0.00439639]
[1770136335993,2.41319305,2256.7,2255.5,0.00439639]
[1770136336196,2.41319305,2256.6,2255.5,0.00439639]
[1770136337697,2.41319305,2256.6,2255.5,2.53726729]
[1770136337902,0.00533644,2257.0,2255.5,2.53726729]
[1770136338103,0.00533644,2257.0,2255.9,2.5328709]
[1770136338298,2.41319305,2257.9,2256.5,2.5328709]
[1770136338700,2.63484305,2257.9,2256.3,4.438]
[1770136338998,2.41319305,2257.9,2256.3,6.9708709]
[1770136339302,2.41872598,2257.9,2256.4,2.7546709]
[1770136340206,2.41872598,2257.9,2256.3,4.438]
[1770136340906,2.64037598,2257.9,2256.3,4.438]
[1770136341204,2.3596169,2257.6,2255.5,2.53822842]
[1770136341408,0.00553293,2257.9,2255.5,2.53822842]
[1770136341409,2.3596169,2257.4,2255.5,2.53822842]
[1770136341608,2.5813169,2257.4,2255.5,2.53822842]
[1770136342404,2.3596169,2257.2,2255.5,2.53822842]
[1770136342706,2.3596169,2256.7,2255.5,0.00439639]
[1770136343099,2.3596169,2256.5,2255.5,0.00439639]
[1770136345303,2.3596169,2256.2,2254.5,4.436]
[1770136345505,2.3596169,2256.2,2254.5,6.96983203]
[1770136345707,2.3596169,2256.2,2251.7,6.56193062]
[1770136345708,0.22187,2255.7,2251.7,6.56193062]
[1770136346004,2.22191016,2254.5,2252.4,2.55257356]
[1770136346201,2.602,2254.4,2252.0,2.55257356]
[1770136346402,2.602,2254.4,2252.0,2.55628697]
[1770136346403,0.22205,2253.9,2252.0,2.55628697]
[1770136346703,0.00401087,2254.4,2252.0,2.55628697]
[1770136346704,10.956,2253.8,2252.1,5.14258135]
[1770136346909,0.3125558,2253.9,2252.1,5.14258135]
[1770136347105,0.00401087,2254.4,2252.1,2.55257356]
[1770136347304,0.22205,2253.9,2252.2,5.14258135]
[1770136347501,10.954,2253.8,2252.3,2.55257356]
[1770136347700,0.22205,2253.9,2252.3,2.55257356]
[1770136347901,0.00401087,2254.4,2252.8,2.55257356]
[1770136348102,7.039,2254.3,2252.9,5.14258135]
[1770136348311,0.00401087,2254.4,2252.9,2.55257356]
[1770136348609,4.437,2254.3,2253.0,7.57634583]
[1770136348800,0.00401087,2254.4,2253.0,2.55257356]
[1770136349006,0.00401087,2254.4,2253.2,2.55257356]
[1770136349205,4.437,2254.3,2253.2,2.55257356]
[1770136349509,0.00401087,2254.4,2253.3,7.57634583]
[1770136349706,0.00401087,2254.4,2253.3,2.55257356]
[1770136350012,4.437,2254.3,2253.4,2.43376448]
[1770136350209,0.00401087,2254.4,2253.5,2.43376448]
[1770136350410,4.438,2254.3,2253.5,4.96759651]
[1770136350605,0.00401087,2254.4,2253.6,2.43376448]
[1770136350905,4.44201087,2254.4,2253.6,2.59392289]
[1770136351210,0.00401087,2254.4,2253.6,2.59392289]
[1770136351411,0.00401087,2254.4,2253.7,2.53383203]
[1770136351614,0.00401087,2254.4,2254.0,4.96759651]
[1770136351910,4.438,2255.0,2254.1,2.53383203]
[1770136352312,4.438,2255.0,2254.2,5.02377227]
[1770136352503,0.29029096,2255.4,2254.2,5.02377227]
[1770136352705,0.00411433,2255.4,2254.4,4.96759651]
[1770136352905,0.00411433,2255.4,2254.7,2.53383203]
[1770136353414,0.00411433,2255.4,2253.6,0.0039151]
[1770136353415,0.00411433,2255.4,2254.9,4.96759651]
[1770136353615,0.00411433,2255.4,2254.2,2.53383203]
[1770136353814,4.438,2255.3,2254.2,2.53383203]
[1770136354010,4.438,2255.3,2254.4,2.53383203]
[1770136354215,4.438,2255.3,2254.5,5.12383982]
[1770136354410,4.438,2255.3,2254.5,2.53383203]
[1770136354612,0.00411433,2255.4,2254.7,2.43376448]
[1770136354817,0.00411433,2255.4,2254.8,2.53383203]
[1770136355012,0.22181,2256.3,2255.1,2.53383203]
[1770136355516,4.438,2256.2,2255.2,2.59000779]
[1770136355716,10.902,2256.1,2255.2,2.59000779]
[1770136356012,0.22185,2255.9,2254.7,2.53383203]
[1770136356213,0.22185,2255.9,2254.8,2.59000779]
[1770136356414,0.22187,2255.7,2254.8,2.59000779]
[1770136356815,0.22187,2255.7,2254.9,2.53383203]
[1770136357111,0.11388554,2256.0,2255.0,1.94375448]
[1770136357317,0.00515885,2256.1,2253.7,2.55257356]
[1770136357516,0.22189,2255.5,2254.2,2.55257356]
[1770136357716,0.22191,2255.3,2254.2,2.55257356]
[1770136357916,0.22192,2255.2,2254.3,2.59000779]
[1770136358317,0.22192,2255.2,2254.3,0.00347738]
[1770136358518,0.22192,2255.2,2254.4,2.59000779]
[1770136358815,4.438,2255.1,2254.4,5.13634015]
[1770136359018,0.22192,2255.2,2254.4,5.13634015]
[1770136359218,4.438,2255.1,2254.4,5.13634015]
[1770136359617,4.438,2255.1,2254.4,2.59000779]
[1770136360419,4.438,2255.1,2254.4,5.13814381]
[1770136360619,0.22192,2255.2,2254.4,5.13814381]
[1770136360815,4.65992,2255.2,2254.4,5.13814381]
[1770136361115,0.22192,2255.2,2254.4,5.13814381]
[1770136361819,0.22192,2255.2,2254.5,2.54813602]
[1770136362519,11.07993,2255.1,2252.9,0.22214]
[1770136362716,0.222,2254.4,2252.5,4.438]
[1770136362916,0.222,2254.4,2252.6,0.22217]
[1770136363415,0.22708295,2254.4,2252.6,0.22575067]
[1770136364419,0.22708295,2254.4,2252.7,2.53383203]
[1770136364919,0.00508295,2254.4,2252.9,2.53383203]
[1770136365117,0.22194,2255.0,2253.1,2.53383203]
[1770136365319,4.65994,2255.0,2253.1,2.53383203]
[1770136365721,0.22194,2255.0,2253.1,2.53383203]
[1770136365922,2.3596169,2254.9,2253.1,2.53383203]
[1770136366118,0.00428891,2254.9,2253.1,2.53383203]
[1770136366318,0.00428891,2254.9,2253.1,2.75595203]
[1770136367625,0.00428891,2254.9,2253.4,0.22209]
[1770136367827,0.00428891,2254.9,2253.5,2.53383203]
[1770136368630,0.22187,2255.7,2253.7,2.53383203]
[1770136368927,2.3596169,2256.1,2254.2,2.53383203]
[1770136369126,0.22182,2256.2,2254.4,2.53383203]
[1770136369723,0.22182,2256.2,2254.4,2.53834792]
[1770136369724,2.3596169,2256.0,2254.4,2.53834792]
[1770136370326,2.30904904,2255.5,2254.4,2.53834792]
[1770136370622,2.30904904,2255.4,2254.4,0.00451589]
[1770136370827,0.22193,2255.1,2254.4,0.00451589]
[1770136373226,2.53091904,2255.7,2254.4,2.52588113]
[1770136373427,2.3125314,2256.0,2254.4,2.52588113]
[1770136373631,6.7505314,2256.0,2254.4,2.52588113]
[1770136374227,2.3125314,2256.0,2254.4,2.52588113]
[1770136374631,6.97616667,2256.2,2254.4,2.52588113]